[Event "Early-Titled-Tuesday-Blitz-April-16-2024"]
[Site "Chess.com"]
[Date "2024.04.16"]
[Round "1"]
[White "SHIVACalypso"]
[Black "Matibar"]
[Result "0-1"]
[WhiteElo "2464"]
[BlackElo "2819"]
[TimeControl "180+1"]
[EndTime "8:07:21 PDT"]
[Termination "Matibar won by resignation"]

1. Nf3 {[%clk 0:02:59.7]} 1... g6 {[%clk 0:02:55.1]} 2. c4 {[%clk 0:02:58.7]}
2... Bg7 {[%clk 0:02:54]} 3. g3 {[%clk 0:02:59.3]} 3... Nf6 {[%clk 0:02:50.9]}
4. Bg2 {[%clk 0:02:59.9]} 4... O-O {[%clk 0:02:50.4]} 5. O-O {[%clk 0:03:00.5]}
5... d6 {[%clk 0:02:47.1]} 6. Nc3 {[%clk 0:03:00.2]} 6... c6 {[%clk 0:02:35]} 7.
d3 {[%clk 0:02:52.2]} 7... a5 {[%clk 0:02:32.6]} 8. a3 {[%clk 0:02:51.7]} 8...
Bd7 {[%clk 0:02:22.9]} 9. Rb1 {[%clk 0:02:51.1]} 9... Na6 {[%clk 0:02:21.9]} 10.
b4 {[%clk 0:02:49.7]} 10... axb4 {[%clk 0:02:22.8]} 11. axb4 {[%clk 0:02:50.6]}
11... Qc8 {[%clk 0:02:11.8]} 12. Re1 {[%clk 0:02:35.5]} 12... Bh3 {[%clk
0:02:10.1]} 13. Bh1 {[%clk 0:02:35.8]} 13... Rd8 {[%clk 0:02:09.9]} 14. Qc2
{[%clk 0:02:26]} 14... d5 {[%clk 0:01:57.8]} 15. b5 {[%clk 0:02:15.9]} 15...
cxb5 {[%clk 0:01:56.6]} 16. Nxb5 {[%clk 0:02:12.7]} 16... dxc4 {[%clk
0:01:54.2]} 17. Qxc4 {[%clk 0:02:12.1]} 17... Qxc4 {[%clk 0:01:53.8]} 18. dxc4
{[%clk 0:02:13]} 18... Bf5 {[%clk 0:01:53.2]} 19. Ra1 {[%clk 0:01:54.7]} 19...
Ne4 {[%clk 0:01:49.4]} 20. Ra2 {[%clk 0:01:53.4]} 20... Be6 {[%clk 0:01:39.4]}
21. Nd2 {[%clk 0:01:40.4]} 21... Nxd2 {[%clk 0:01:35.4]} 22. Rxd2 {[%clk
0:01:41.3]} 22... Bxc4 {[%clk 0:01:34]} 23. Na3 {[%clk 0:01:34]} 23... Rxd2
{[%clk 0:00:56.8]} 24. Bxd2 {[%clk 0:01:34.1]} 24... Be6 {[%clk 0:00:56.9]} 25.
Bxb7 {[%clk 0:01:30.2]} 25... Ra7 {[%clk 0:00:53.1]} 26. Bf3 {[%clk 0:01:28.8]}
26... Nc5 {[%clk 0:00:48.9]} 27. Be3 {[%clk 0:01:19.2]} 27... Rxa3 {[%clk
0:00:28.4]} 28. Bxc5 {[%clk 0:01:18.9]} 28... Ra2 {[%clk 0:00:28.6]} 29. Bxe7
{[%clk 0:01:15.2]} 29... h5 {[%clk 0:00:19.9]} 30. h4 {[%clk 0:01:15.1]} 30...
Kh7 {[%clk 0:00:19.8]} 31. Kg2 {[%clk 0:01:14.5]} 31... Ra7 {[%clk 0:00:19.9]}
32. Bg5 {[%clk 0:01:14]} 32... Rd7 {[%clk 0:00:19.7]} 33. Rc1 {[%clk 0:01:13.8]}
33... Ra7 {[%clk 0:00:19.7]} 34. Rd1 {[%clk 0:01:08.2]} 34... Rc7 {[%clk
0:00:19.5]} 35. e4 {[%clk 0:01:08.1]} 35... Ra7 {[%clk 0:00:18.8]} 36. Be3
{[%clk 0:01:08.6]} 36... Rc7 {[%clk 0:00:18.6]} 37. Kf1 {[%clk 0:00:55.4]} 37...
Rc2 {[%clk 0:00:17.6]} 38. Be2 {[%clk 0:00:54.1]} 38... Ra2 {[%clk 0:00:16.7]}
39. Bf3 {[%clk 0:00:51.8]} 39... Bh3+ {[%clk 0:00:16.3]} 40. Kg1 {[%clk
0:00:51.1]} 40... Be6 {[%clk 0:00:17.2]} 41. Kg2 {[%clk 0:00:51]} 41... Ra3
{[%clk 0:00:16.9]} 42. Bd4 {[%clk 0:00:50.7]} 42... Rxf3 {[%clk 0:00:16.3]} 43.
Bxg7 {[%clk 0:00:44.6]} 43... Kxg7 {[%clk 0:00:15.9]} 0-1

[Event "Early-Titled-Tuesday-Blitz-April-16-2024"]
[Site "Chess.com"]
[Date "2024.04.16"]
[Round "1"]
[White "MrVenky"]
[Black "Lukianoo"]
[Result "1/2-1/2"]
[WhiteElo "2495"]
[BlackElo "2845"]
[TimeControl "180+1"]
[EndTime "8:07:23 PDT"]
[Termination "Game drawn by repetition"]

1. e4 {[%clk 0:03:00.9]} 1... c6 {[%clk 0:02:58.8]} 2. d4 {[%clk 0:03:00]} 2...
d5 {[%clk 0:02:59.7]} 3. Nd2 {[%clk 0:02:57.6]} 3... g6 {[%clk 0:02:59.5]} 4.
Ngf3 {[%clk 0:02:55]} 4... Bg7 {[%clk 0:02:59.8]} 5. c3 {[%clk 0:02:53.8]} 5...
Nh6 {[%clk 0:03:00]} 6. Bd3 {[%clk 0:02:48.2]} 6... f6 {[%clk 0:02:59.8]} 7. O-O
{[%clk 0:02:47]} 7... Nf7 {[%clk 0:02:59.6]} 8. Re1 {[%clk 0:02:45.5]} 8... O-O
{[%clk 0:02:59.5]} 9. Qe2 {[%clk 0:02:43.7]} 9... e5 {[%clk 0:02:58]} 10. dxe5
{[%clk 0:02:42.6]} 10... fxe5 {[%clk 0:02:58]} 11. Nf1 {[%clk 0:02:40.8]} 11...
Nd7 {[%clk 0:02:52.7]} 12. Bc2 {[%clk 0:02:32.5]} 12... Nc5 {[%clk 0:02:50.8]}
13. Ng3 {[%clk 0:02:31.9]} 13... Ne6 {[%clk 0:02:33]} 14. exd5 {[%clk
0:02:19.1]} 14... cxd5 {[%clk 0:02:32.4]} 15. Rd1 {[%clk 0:02:20]} 15... b6
{[%clk 0:02:24.6]} 16. Bb3 {[%clk 0:02:16.8]} 16... Bb7 {[%clk 0:02:24.2]} 17.
Be3 {[%clk 0:02:10]} 17... Rc8 {[%clk 0:02:02.1]} 18. Rd2 {[%clk 0:02:07]} 18...
Nc5 {[%clk 0:01:54.5]} 19. Bxc5 {[%clk 0:02:04.1]} 19... Rxc5 {[%clk 0:01:55.4]}
20. Rad1 {[%clk 0:02:03.4]} 20... Qa8 {[%clk 0:01:48.6]} 21. h4 {[%clk
0:01:59.4]} 21... Bh6 {[%clk 0:01:39.9]} 22. Rc2 {[%clk 0:01:47.5]} 22... Bf4
{[%clk 0:01:24.4]} 23. Qe1 {[%clk 0:01:38.3]} 23... Rcc8 {[%clk 0:01:11.7]} 24.
Ne2 {[%clk 0:01:38.1]} 24... Bh6 {[%clk 0:01:11.7]} 25. Nh2 {[%clk 0:01:33.7]}
25... d4 {[%clk 0:01:00.3]} 26. Ng4 {[%clk 0:01:28.3]} 26... Bg7 {[%clk
0:00:59.7]} 27. f3 {[%clk 0:01:23.4]} 27... h5 {[%clk 0:00:58.6]} 28. Nf2 {[%clk
0:01:23.1]} 28... Rfe8 {[%clk 0:00:46.9]} 29. Ne4 {[%clk 0:01:18.5]} 29... Bd5
{[%clk 0:00:41.6]} 30. cxd4 {[%clk 0:01:04.2]} 30... Bxb3 {[%clk 0:00:41.5]} 31.
Rxc8 {[%clk 0:01:03.1]} 31... Qxc8 {[%clk 0:00:41.3]} 32. axb3 {[%clk 0:01:03]}
32... exd4 {[%clk 0:00:37.8]} 33. Qg3 {[%clk 0:00:57.5]} 33... Qc2 {[%clk
0:00:27.2]} 34. Rd2 {[%clk 0:00:47.5]} 34... Qb1+ {[%clk 0:00:26.5]} 35. Kf2
{[%clk 0:00:45.2]} 35... d3 {[%clk 0:00:25.6]} 36. Qxg6 {[%clk 0:00:40.9]} 36...
Kf8 {[%clk 0:00:22.1]} 37. Nf4 {[%clk 0:00:37]} 37... Bd4+ {[%clk 0:00:18.3]}
38. Kg3 {[%clk 0:00:36.2]} 38... Qe1+ {[%clk 0:00:17.2]} 39. Kh3 {[%clk
0:00:28.9]} 39... Qh1+ {[%clk 0:00:12.5]} 40. Kg3 {[%clk 0:00:28.9]} 40... Qe1+
{[%clk 0:00:12.2]} 41. Kh3 {[%clk 0:00:27.9]} 41... Qh1+ {[%clk 0:00:07.4]} 42.
Kg3 {[%clk 0:00:28]} 42... Qe1+ {[%clk 0:00:03.3]} 1/2-1/2

[Event "Early-Titled-Tuesday-Blitz-April-16-2024"]
[Site "Chess.com"]
[Date "2024.04.16"]
[Round "1"]
[White "LeoLV10"]
[Black "FaustinoOro"]
[Result "0-1"]
[WhiteElo "2517"]
[BlackElo "2955"]
[TimeControl "180+1"]
[EndTime "8:07:25 PDT"]
[Termination "FaustinoOro won by resignation"]

1. e4 {[%clk 0:03:00.9]} 1... e5 {[%clk 0:03:00.2]} 2. Nf3 {[%clk 0:03:01.2]}
2... Nc6 {[%clk 0:03:00.6]} 3. Bb5 {[%clk 0:03:01.3]} 3... a6 {[%clk 0:03:00.7]}
4. Ba4 {[%clk 0:03:00.9]} 4... Nf6 {[%clk 0:03:01.2]} 5. O-O {[%clk 0:03:00.5]}
5... b5 {[%clk 0:03:01.7]} 6. Bb3 {[%clk 0:03:00.4]} 6... Bc5 {[%clk 0:03:02.4]}
7. c3 {[%clk 0:03:00.5]} 7... d6 {[%clk 0:03:01.7]} 8. a4 {[%clk 0:02:59.4]}
8... Rb8 {[%clk 0:03:01.5]} 9. d4 {[%clk 0:02:58.5]} 9... Bb6 {[%clk 0:03:01.8]}
10. a5 {[%clk 0:02:58.9]} 10... Ba7 {[%clk 0:03:01.9]} 11. h3 {[%clk 0:02:55.5]}
11... Bb7 {[%clk 0:02:54.4]} 12. Re1 {[%clk 0:02:51.6]} 12... O-O {[%clk
0:02:52.7]} 13. Bg5 {[%clk 0:02:44]} 13... h6 {[%clk 0:02:50.6]} 14. Bh4 {[%clk
0:02:42.4]} 14... Re8 {[%clk 0:02:50]} 15. dxe5 {[%clk 0:02:29.7]} 15... Nxe5
{[%clk 0:02:48.7]} 16. Nbd2 {[%clk 0:02:20.8]} 16... Ng6 {[%clk 0:02:47.5]} 17.
Qc2 {[%clk 0:02:09]} 17... Nxh4 {[%clk 0:02:42.9]} 18. Nxh4 {[%clk 0:02:09.9]}
18... Nxe4 {[%clk 0:02:35.9]} 19. Nxe4 {[%clk 0:00:52.6]} 19... Qxh4 {[%clk
0:02:34.3]} 20. g3 {[%clk 0:00:49.5]} 20... Qd8 {[%clk 0:01:40.2]} 21. Qd3
{[%clk 0:00:46]} 21... d5 {[%clk 0:01:31.3]} 22. Nd2 {[%clk 0:00:41.9]} 22... c5
{[%clk 0:01:23.7]} 23. Bc2 {[%clk 0:00:36.9]} 23... g6 {[%clk 0:01:21.3]} 24.
Nf3 {[%clk 0:00:29]} 24... Qf6 {[%clk 0:01:20.4]} 25. Nh2 {[%clk 0:00:22.4]}
25... h5 {[%clk 0:01:14.7]} 26. Qd2 {[%clk 0:00:20.3]} 26... d4 {[%clk
0:01:06.6]} 27. cxd4 {[%clk 0:00:19.2]} 27... cxd4 {[%clk 0:01:07.5]} 28. Rac1
{[%clk 0:00:16.1]} 28... Rbc8 {[%clk 0:01:00.9]} 29. Rxe8+ {[%clk 0:00:15.3]}
29... Rxe8 {[%clk 0:01:01]} 30. Bd3 {[%clk 0:00:15.3]} 30... Qe5 {[%clk
0:00:52.8]} 31. h4 {[%clk 0:00:13.2]} 31... Qd5 {[%clk 0:00:51.6]} 32. f3 {[%clk
0:00:12.5]} 32... Bb8 {[%clk 0:00:49.9]} 33. Qf2 {[%clk 0:00:11.4]} 33... Qd6
{[%clk 0:00:47.8]} 34. Kg2 {[%clk 0:00:10.1]} 34... Re3 {[%clk 0:00:46.5]} 35.
Rd1 {[%clk 0:00:09.5]} 35... Qf6 {[%clk 0:00:45.5]} 36. Be2 {[%clk 0:00:09]}
36... Qe5 {[%clk 0:00:44.3]} 37. Bf1 {[%clk 0:00:08.3]} 37... Bc7 {[%clk
0:00:42.1]} 38. Rd3 {[%clk 0:00:05.7]} 38... Re1 {[%clk 0:00:41]} 39. Rd2 {[%clk
0:00:05.4]} 39... Bxa5 {[%clk 0:00:38.7]} 40. Rc2 {[%clk 0:00:05.1]} 40... Bb6
{[%clk 0:00:37.6]} 41. Bd3 {[%clk 0:00:05.2]} 41... Re3 {[%clk 0:00:37]} 42. Rd2
{[%clk 0:00:05.5]} 42... Bd5 {[%clk 0:00:35.6]} 43. Rd1 {[%clk 0:00:05.1]} 43...
Bb3 {[%clk 0:00:35.6]} 44. Rd2 {[%clk 0:00:05]} 44... Ba5 {[%clk 0:00:36]} 45.
Nf1 {[%clk 0:00:04.7]} 45... Bxd2 {[%clk 0:00:35.6]} 46. Qxd2 {[%clk 0:00:05.6]}
46... Re1 {[%clk 0:00:34.1]} 47. Nh2 {[%clk 0:00:04.4]} 47... Bc4 {[%clk
0:00:33.4]} 48. Be4 {[%clk 0:00:04.2]} 48... Rxe4 {[%clk 0:00:32.6]} 49. fxe4
{[%clk 0:00:04.2]} 49... Qxe4+ {[%clk 0:00:33.5]} 50. Nf3 {[%clk 0:00:04.6]}
50... Bd5 {[%clk 0:00:33.7]} 51. Qd3 {[%clk 0:00:03.7]} 51... Qxd3 {[%clk
0:00:33.9]} 0-1

[Event "Early-Titled-Tuesday-Blitz-April-16-2024"]
[Site "Chess.com"]
[Date "2024.04.16"]
[Round "1"]
[White "Payyappat"]
[Black "OparinGrigoriy"]
[Result "0-1"]
[WhiteElo "2520"]
[BlackElo "2973"]
[TimeControl "180+1"]
[EndTime "8:07:27 PDT"]
[Termination "OparinGrigoriy won by resignation"]

1. e4 {[%clk 0:03:00.9]} 1... a6 {[%clk 0:02:58.3]} 2. d4 {[%clk 0:03:01]} 2...
b5 {[%clk 0:02:58.7]} 3. c4 {[%clk 0:03:00.9]} 3... bxc4 {[%clk 0:02:58.4]} 4.
Bxc4 {[%clk 0:03:01.8]} 4... e6 {[%clk 0:02:58.9]} 5. Nc3 {[%clk 0:03:02]} 5...
Bb7 {[%clk 0:02:59.6]} 6. Nf3 {[%clk 0:03:02.2]} 6... Nf6 {[%clk 0:02:59.9]} 7.
Qb3 {[%clk 0:02:57.5]} 7... Bxe4 {[%clk 0:02:51.3]} 8. Nxe4 {[%clk 0:02:57.3]}
8... Nxe4 {[%clk 0:02:52.2]} 9. Ne5 {[%clk 0:02:47.2]} 9... d5 {[%clk
0:02:28.1]} 10. Qb7 {[%clk 0:02:29.8]} 10... Nd7 {[%clk 0:02:25.3]} 11. Bxa6
{[%clk 0:02:26.8]} 11... Nxe5 {[%clk 0:02:11.2]} 12. dxe5 {[%clk 0:02:26.8]}
12... Be7 {[%clk 0:01:40.8]} 13. Qc6+ {[%clk 0:01:59]} 13... Kf8 {[%clk
0:01:16.2]} 14. O-O {[%clk 0:01:57.7]} 14... Rb8 {[%clk 0:01:13.9]} 15. Be3
{[%clk 0:01:54.9]} 15... h5 {[%clk 0:00:51.8]} 16. Rac1 {[%clk 0:01:41.1]} 16...
g6 {[%clk 0:00:39.5]} 17. f3 {[%clk 0:01:27.8]} 17... Ng5 {[%clk 0:00:37.2]} 18.
Qxc7 {[%clk 0:01:27.9]} 18... Kg7 {[%clk 0:00:26.4]} 19. Qxd8 {[%clk 0:01:26.3]}
19... Bxd8 {[%clk 0:00:27.3]} 20. b3 {[%clk 0:00:56.4]} 20... Bb6 {[%clk
0:00:26.3]} 21. Bxb6 {[%clk 0:00:54.6]} 21... Rxb6 {[%clk 0:00:27.2]} 22. Bd3
{[%clk 0:00:54.8]} 22... Ra8 {[%clk 0:00:26.7]} 23. Rc2 {[%clk 0:00:53.7]} 23...
h4 {[%clk 0:00:23.4]} 24. Rb1 {[%clk 0:00:49.4]} 24... Ra3 {[%clk 0:00:20.3]}
25. Rbb2 {[%clk 0:00:44.5]} 25... h3 {[%clk 0:00:20.3]} 26. Rc5 {[%clk
0:00:43.8]} 26... hxg2 {[%clk 0:00:20]} 27. Kxg2 {[%clk 0:00:43.7]} 27... Rb4
{[%clk 0:00:20]} 28. Bb5 {[%clk 0:00:26.1]} 28... f6 {[%clk 0:00:17.4]} 29. Re2
{[%clk 0:00:12.3]} 29... fxe5 {[%clk 0:00:16.8]} 30. Ba4 {[%clk 0:00:12.6]}
30... e4 {[%clk 0:00:13.8]} 31. fxe4 {[%clk 0:00:12.3]} 31... Nxe4 {[%clk
0:00:14.7]} 32. Rc6 {[%clk 0:00:12.2]} 32... Kf6 {[%clk 0:00:15]} 33. Kf3 {[%clk
0:00:11.8]} 33... Ke5 {[%clk 0:00:14.3]} 34. Kg2 {[%clk 0:00:11.4]} 34... g5
{[%clk 0:00:14.5]} 35. Kh3 {[%clk 0:00:11.2]} 35... d4 {[%clk 0:00:13.2]} 36.
Kg4 {[%clk 0:00:11.3]} 36... d3 {[%clk 0:00:13.7]} 37. Re1 {[%clk 0:00:11.1]}
37... d2 {[%clk 0:00:14.4]} 38. Rd1 {[%clk 0:00:11.6]} 38... Nf2+ {[%clk
0:00:15.1]} 39. Kxg5 {[%clk 0:00:11.7]} 39... Nxd1 {[%clk 0:00:15.6]} 40. h4
{[%clk 0:00:11.8]} 40... Ne3 {[%clk 0:00:16.1]} 0-1

[Event "Early-Titled-Tuesday-Blitz-April-16-2024"]
[Site "Chess.com"]
[Date "2024.04.16"]
[Round "1"]
[White "NajdorfPlayerc5"]
[Black "Ginger_GM"]
[Result "0-1"]
[WhiteElo "2369"]
[BlackElo "2662"]
[TimeControl "180+1"]
[EndTime "8:07:33 PDT"]
[Termination "Ginger_GM won on time"]

1. Nf3 {[%clk 0:02:58.7]} 1... f5 {[%clk 0:02:56.6]} 2. d4 {[%clk 0:02:57.5]}
2... e6 {[%clk 0:02:47.6]} 3. g3 {[%clk 0:02:56.2]} 3... Nf6 {[%clk 0:02:46.7]}
4. Bg2 {[%clk 0:02:55.4]} 4... Be7 {[%clk 0:02:46.4]} 5. O-O {[%clk 0:02:55.3]}
5... O-O {[%clk 0:02:46.2]} 6. c4 {[%clk 0:02:54.1]} 6... d6 {[%clk 0:02:46.1]}
7. Nc3 {[%clk 0:02:53.2]} 7... a5 {[%clk 0:02:42.8]} 8. Re1 {[%clk 0:02:44.9]}
8... Ne4 {[%clk 0:02:39.9]} 9. Qc2 {[%clk 0:02:40.3]} 9... Nc6 {[%clk
0:02:39.7]} 10. Nxe4 {[%clk 0:02:38.8]} 10... Nb4 {[%clk 0:02:39.5]} 11. Qb1
{[%clk 0:02:36.9]} 11... fxe4 {[%clk 0:02:39.3]} 12. Qxe4 {[%clk 0:02:37.8]}
12... e5 {[%clk 0:02:39.6]} 13. Qb1 {[%clk 0:02:18]} 13... Bf5 {[%clk
0:02:33.1]} 14. e4 {[%clk 0:02:17.2]} 14... Bg4 {[%clk 0:02:33.4]} 15. Nd2
{[%clk 0:02:13]} 15... exd4 {[%clk 0:02:31.7]} 16. a3 {[%clk 0:02:12.9]} 16...
Nc6 {[%clk 0:02:29.2]} 17. f4 {[%clk 0:01:59.4]} 17... Qd7 {[%clk 0:02:07.9]}
18. Qd3 {[%clk 0:01:50.7]} 18... g5 {[%clk 0:01:49.1]} 19. Nf3 {[%clk
0:01:39.6]} 19... gxf4 {[%clk 0:01:43.4]} 20. gxf4 {[%clk 0:01:31.6]} 20... Bf6
{[%clk 0:01:25.7]} 21. Bd2 {[%clk 0:01:24.4]} 21... Kh8 {[%clk 0:01:22.8]} 22.
Kh1 {[%clk 0:01:21.3]} 22... a4 {[%clk 0:01:20.3]} 23. Rg1 {[%clk 0:01:18.5]}
23... Rg8 {[%clk 0:01:19.7]} 24. Raf1 {[%clk 0:00:51.8]} 24... Rae8 {[%clk
0:01:08.7]} 25. Re1 {[%clk 0:00:37.6]} 25... Rg6 {[%clk 0:00:57.2]} 26. f5
{[%clk 0:00:29.5]} 26... Rgg8 {[%clk 0:00:46.6]} 27. Bf4 {[%clk 0:00:29.8]}
27... Qf7 {[%clk 0:00:37.6]} 28. h3 {[%clk 0:00:22.5]} 28... Qh5 {[%clk
0:00:37.2]} 29. Nh2 {[%clk 0:00:21]} 29... Be5 {[%clk 0:00:21.9]} 30. hxg4
{[%clk 0:00:17]} 30... Rxg4 {[%clk 0:00:19.1]} 31. Bxe5+ {[%clk 0:00:14.4]}
31... Nxe5 {[%clk 0:00:18.7]} 32. Qh3 {[%clk 0:00:14.3]} 32... Rh4 {[%clk
0:00:18.7]} 33. Qg3 {[%clk 0:00:09.7]} 33... Rg8 {[%clk 0:00:18.9]} 34. Bf3
{[%clk 0:00:05.3]} 34... Rxg3 {[%clk 0:00:15.7]} 35. Bxh5 {[%clk 0:00:05.2]}
35... Rgh3 {[%clk 0:00:14]} 36. Re2 {[%clk 0:00:02.3]} 36... Rxh5 {[%clk
0:00:10.3]} 37. Reg2 {[%clk 0:00:02.7]} 37... Rxh2+ {[%clk 0:00:09.9]} 38. Rxh2
{[%clk 0:00:03.2]} 38... Rxh2+ {[%clk 0:00:10.1]} 39. Kxh2 {[%clk 0:00:04.1]}
39... Nf3+ {[%clk 0:00:10.3]} 40. Kg2 {[%clk 0:00:04.2]} 40... Nxg1 {[%clk
0:00:10.7]} 41. Kxg1 {[%clk 0:00:05.1]} 41... Kg7 {[%clk 0:00:10]} 42. Kf2
{[%clk 0:00:04.4]} 42... Kf6 {[%clk 0:00:10.4]} 0-1

[Event "Early-Titled-Tuesday-Blitz-April-16-2024"]
[Site "Chess.com"]
[Date "2024.04.16"]
[Round "1"]
[White "GothamChess"]
[Black "Donskov_AN"]
[Result "1-0"]
[WhiteElo "2659"]
[BlackElo "2363"]
[TimeControl "180+1"]
[EndTime "8:07:33 PDT"]
[Termination "GothamChess won on time"]

1. e4 {[%clk 0:02:57.9]} 1... c5 {[%clk 0:02:59]} 2. Nc3 {[%clk 0:02:55.1]} 2...
Nc6 {[%clk 0:02:59.4]} 3. Bb5 {[%clk 0:02:54.8]} 3... g6 {[%clk 0:02:49.8]} 4.
Bxc6 {[%clk 0:02:54.5]} 4... dxc6 {[%clk 0:02:49.6]} 5. d3 {[%clk 0:02:54.7]}
5... Bg7 {[%clk 0:02:48.9]} 6. f4 {[%clk 0:02:54.9]} 6... Nf6 {[%clk 0:02:49.1]}
7. Nf3 {[%clk 0:02:55.1]} 7... O-O {[%clk 0:02:49.4]} 8. O-O {[%clk 0:02:55.6]}
8... b6 {[%clk 0:02:49]} 9. Qe1 {[%clk 0:02:55.8]} 9... Ne8 {[%clk 0:02:45.8]}
10. Qh4 {[%clk 0:02:36.2]} 10... Nc7 {[%clk 0:02:45.2]} 11. f5 {[%clk
0:02:22.7]} 11... Nb5 {[%clk 0:02:31.7]} 12. Nxb5 {[%clk 0:02:08.1]} 12... cxb5
{[%clk 0:02:32.6]} 13. Bh6 {[%clk 0:02:05.2]} 13... f6 {[%clk 0:02:29.7]} 14.
fxg6 {[%clk 0:01:44.7]} 14... hxg6 {[%clk 0:02:28.7]} 15. Bd2 {[%clk 0:01:45.4]}
15... Be6 {[%clk 0:02:25.3]} 16. Qg3 {[%clk 0:01:30.1]} 16... Bf7 {[%clk
0:02:18.9]} 17. Nh4 {[%clk 0:01:28.3]} 17... Qe8 {[%clk 0:02:19.1]} 18. Rf2
{[%clk 0:01:21.8]} 18... a5 {[%clk 0:01:53.5]} 19. Raf1 {[%clk 0:01:12.8]} 19...
b4 {[%clk 0:01:52.1]} 20. Rf3 {[%clk 0:00:48.4]} 20... a4 {[%clk 0:01:47.9]} 21.
Qg4 {[%clk 0:00:45.3]} 21... Qc8 {[%clk 0:01:45.5]} 22. Qg3 {[%clk 0:00:19.8]}
22... Qe8 {[%clk 0:01:43.8]} 23. a3 {[%clk 0:00:20.3]} 23... bxa3 {[%clk
0:01:41.1]} 24. bxa3 {[%clk 0:00:21.2]} 24... b5 {[%clk 0:01:41.3]} 25. Bc3
{[%clk 0:00:20.2]} 25... Rb8 {[%clk 0:01:29.5]} 26. Bb2 {[%clk 0:00:18.4]} 26...
b4 {[%clk 0:01:28.8]} 27. Kh1 {[%clk 0:00:15.7]} 27... b3 {[%clk 0:01:26.8]} 28.
c4 {[%clk 0:00:16]} 28... Rb7 {[%clk 0:00:53.3]} 29. Rf4 {[%clk 0:00:11.9]}
29... Rd7 {[%clk 0:00:41.7]} 30. Rg4 {[%clk 0:00:11.8]} 30... g5 {[%clk
0:00:37.4]} 31. Rxg5 {[%clk 0:00:04.1]} 31... fxg5 {[%clk 0:00:26.9]} 32. Bxg7
{[%clk 0:00:03.7]} 32... gxh4 {[%clk 0:00:16]} 33. Qg5 {[%clk 0:00:03.2]} 33...
Bg6 {[%clk 0:00:06.9]} 34. Bxf8 {[%clk 0:00:02.8]} 34... e5 {[%clk 0:00:04.5]}
35. Bxc5 {[%clk 0:00:01.7]} 35... Kh7 {[%clk 0:00:03.4]} 36. Be3 {[%clk
0:00:01.5]} 36... Kg8 {[%clk 0:00:02.1]} 37. Qh6 {[%clk 0:00:01.9]} 37... Rg7
{[%clk 0:00:01.8]} 38. Bc5 {[%clk 0:00:01.6]} 1-0

[Event "Early-Titled-Tuesday-Blitz-April-16-2024"]
[Site "Chess.com"]
[Date "2024.04.16"]
[Round "1"]
[White "UmarovSabir"]
[Black "Nf3c5"]
[Result "0-1"]
[WhiteElo "2295"]
[BlackElo "2611"]
[TimeControl "180+1"]
[EndTime "8:07:33 PDT"]
[Termination "Nf3c5 won on time"]

1. e4 {[%clk 0:03:00.3]} 1... c5 {[%clk 0:02:54.3]} 2. Nf3 {[%clk 0:02:59.4]}
2... Nc6 {[%clk 0:02:54.5]} 3. d4 {[%clk 0:02:58.3]} 3... cxd4 {[%clk
0:02:55.4]} 4. Nxd4 {[%clk 0:02:58.7]} 4... e5 {[%clk 0:02:56]} 5. Nxc6 {[%clk
0:02:58]} 5... bxc6 {[%clk 0:02:55.1]} 6. Be2 {[%clk 0:02:56.5]} 6... Nf6 {[%clk
0:02:54.4]} 7. Nd2 {[%clk 0:02:53.3]} 7... Bc5 {[%clk 0:02:44.3]} 8. O-O {[%clk
0:02:52.5]} 8... O-O {[%clk 0:02:43.2]} 9. b3 {[%clk 0:02:36.3]} 9... Bd4 {[%clk
0:02:37]} 10. Rb1 {[%clk 0:02:35.1]} 10... d5 {[%clk 0:02:29.6]} 11. exd5 {[%clk
0:02:19.7]} 11... cxd5 {[%clk 0:02:26.8]} 12. Bb2 {[%clk 0:02:18.4]} 12... Bxb2
{[%clk 0:02:18.5]} 13. Rxb2 {[%clk 0:02:19.3]} 13... Qa5 {[%clk 0:02:14.6]} 14.
c4 {[%clk 0:02:14.5]} 14... d4 {[%clk 0:02:08.2]} 15. b4 {[%clk 0:02:14.1]}
15... Qc7 {[%clk 0:02:03.6]} 16. c5 {[%clk 0:02:03.6]} 16... Bb7 {[%clk
0:01:52.7]} 17. Nc4 {[%clk 0:02:00.5]} 17... Rad8 {[%clk 0:01:45]} 18. Nd6
{[%clk 0:01:57.3]} 18... Ba8 {[%clk 0:01:38]} 19. Bc4 {[%clk 0:01:47.1]} 19...
Rxd6 {[%clk 0:01:35.2]} 20. cxd6 {[%clk 0:01:46.9]} 20... Qxc4 {[%clk
0:01:35.1]} 21. Qa4 {[%clk 0:01:37.4]} 21... Qd5 {[%clk 0:01:31.2]} 22. f3
{[%clk 0:01:37.2]} 22... Qxd6 {[%clk 0:00:53.8]} 23. Qxa7 {[%clk 0:01:35.9]}
23... h5 {[%clk 0:00:54.5]} 24. b5 {[%clk 0:01:34.1]} 24... Rb8 {[%clk
0:00:42.2]} 25. b6 {[%clk 0:01:28]} 25... Bb7 {[%clk 0:00:42.4]} 26. a4 {[%clk
0:00:52.8]} 26... d3 {[%clk 0:00:41.6]} 27. a5 {[%clk 0:00:49.9]} 27... Nd7
{[%clk 0:00:39.1]} 28. Rd2 {[%clk 0:00:35.7]} 28... Bc6 {[%clk 0:00:30.2]} 29.
Qc7 {[%clk 0:00:23]} 29... Qd5 {[%clk 0:00:27.7]} 30. Rfd1 {[%clk 0:00:16]}
30... e4 {[%clk 0:00:16.2]} 31. fxe4 {[%clk 0:00:10.8]} 31... Qxe4 {[%clk
0:00:11.5]} 32. Qg3 {[%clk 0:00:11.7]} 32... Qd4+ {[%clk 0:00:09.1]} 33. Kh1
{[%clk 0:00:11.4]} 33... Ne5 {[%clk 0:00:08.2]} 34. Rxd3 {[%clk 0:00:09.8]}
34... Nxd3 {[%clk 0:00:08.4]} 35. Qxb8+ {[%clk 0:00:09.4]} 35... Kh7 {[%clk
0:00:09.2]} 36. Rf1 {[%clk 0:00:04.6]} 36... Nf2+ {[%clk 0:00:08.8]} 0-1